bitfinex/quotes_SOLUSD_20240621
["timestamp","ask_amount","ask_price","bid_price","bid_amount"]
[1719010339034,6.2807,134.67,134.63,5.9421]
[1719010339454,6.2807,134.67,134.62,5.9424]
[1719010341157,5.941,134.66,134.61,5.9429]
[1719010342171,5.9413,134.65,134.61,5.9429]
[1719010342333,5.9413,134.65,134.6,5.9434]
[1719010343146,21.8103,134.65,134.6,5.9434]
[1719010343356,21.8103,134.65,134.61,5.943]
[1719010343657,15.869,134.65,134.61,5.943]
[1719010344467,15.869,134.65,134.62,5.9425]
[1719010348042,21.8104,134.65,134.61,5.943]
[1719010348237,21.8104,134.65,134.6,5.9433]
[1719010349143,6.1118,134.64,134.6,5.9433]
[1719010349343,0.17,134.64,134.6,5.9433]
[1719010349760,0.17,134.64,134.61,5.9429]
[1719010349962,15.869,134.65,134.62,5.9425]
[1719010350181,15.869,134.65,134.63,5.942]
[1719010353075,15.869,134.68,134.61,14.8569]
[1719010353274,15.869,134.68,134.64,5.9415]
[1719010353767,21.8091,134.68,134.63,5.9419]
[1719010354162,0.17,134.67,134.63,5.9419]
[1719010355055,21.8092,134.68,134.64,5.9416]
[1719010355263,15.869,134.68,134.64,5.9416]
[1719010355465,15.869,134.68,134.63,5.942]
[1719010355665,21.8092,134.68,134.63,5.942]
[1719010355857,15.869,134.68,134.64,5.9417]
[1719010356266,5.9405,134.67,134.59,58.1107]
[1719010356475,21.8091,134.68,134.63,5.9421]
[1719010356966,5.9405,134.67,134.63,5.9421]
[1719010357155,5.9405,134.67,134.62,5.9424]
[1719010357352,5.9409,134.66,134.61,15.2328]
[1719010357571,5.9409,134.66,134.61,5.9428]
[1719010357572,15.2309,134.66,134.61,5.9428]
[1719010357773,15.2309,134.66,134.61,15.2328]
[1719010359458,5.9409,134.66,134.62,5.9425]
[1719010359659,6.1115,134.65,134.57,14.862]
[1719010359863,6.1118,134.64,134.6,5.9434]
[1719010360265,15.869,134.63,134.58,5.9442]
[1719010360457,15.869,134.63,134.54,27.87]
[1719010360654,15.869,134.63,134.55,5.9455]
[1719010360860,5.9432,134.61,134.53,15.3911]
[1719010361171,5.9427,134.62,134.57,5.9447]
[1719010362179,5.9427,134.62,134.58,5.9444]
[1719010362957,5.9427,134.62,134.57,5.9446]
[1719010364980,6.1131,134.61,134.56,5.945]
[1719010365173,6.1131,134.61,134.57,5.9448]
[1719010365884,0.17,134.61,134.54,14.8654]
[1719010366184,6.2829,134.62,134.58,5.9443]
[1719010366490,15.869,134.63,134.59,5.9437]
[1719010367281,15.869,134.63,134.58,5.9442]
[1719010367282,21.8113,134.63,134.58,5.9442]
[1719010367482,15.869,134.63,134.59,5.9439]
[1719010367679,21.8112,134.63,134.59,5.9439]
[1719010368057,15.5938,134.66,134.57,14.8613]
[1719010368258,21.5347,134.66,134.61,5.9429]
[1719010368960,21.5349,134.66,134.61,5.9428]
[1719010370483,15.5938,134.66,134.62,5.9424]
[1719010371055,15.5938,134.66,134.63,5.9421]
[1719010371259,14.8481,134.7,134.6,22.34]
[1719010371260,15.5938,134.7,134.6,22.34]
[1719010371461,21.533,134.7,134.61,28.21]
[1719010371660,15.5938,134.7,134.66,5.9405]
[1719010374291,21.5329,134.7,134.66,5.9405]
[1719010375192,5.9395,134.69,134.65,5.9411]
[1719010375771,0.34,134.68,134.59,30.5797]
[1719010376098,0.34,134.68,134.6,5.9433]
[1719010376099,5.9414,134.65,134.6,5.9433]
[1719010376464,14.8501,134.68,134.58,14.8601]
[1719010376774,5.9402,134.68,134.63,5.9419]
[1719010377490,21.533,134.7,134.65,5.9412]
[1719010377797,15.5938,134.7,134.61,14.8568]
[1719010377970,5.9402,134.68,134.63,5.942]
[1719010379398,5.9397,134.69,134.64,5.9416]
[1719010379895,5.94,134.68,134.63,5.942]
[1719010380095,5.94,134.68,134.64,5.9417]
[1719010380293,15.7638,134.7,134.64,5.9417]
[1719010380294,5.9397,134.69,134.64,5.9417]
[1719010381177,5.94,134.68,134.64,5.9417]
[1719010381585,5.94,134.68,134.63,5.942]
[1719010382973,15.5938,134.7,134.61,16.3162]
[1719010383185,5.9396,134.69,134.64,5.9416]
[1719010383386,5.94,134.68,134.63,5.942]
[1719010383593,5.94,134.68,134.64,9.28]
[1719010385095,5.9385,134.72,134.67,5.9402]
[1719010385404,5.9385,134.72,134.67,15.2202]
[1719010385609,24.856,134.73,134.67,9.28]
[1719010385897,5.9382,134.72,134.67,15.2202]
[1719010387372,5.9382,134.72,134.67,5.9402]
[1719010388804,5.9382,134.72,134.68,5.94]
[1719010388986,21.5139,134.73,134.68,5.94]
[1719010389183,5.9382,134.72,134.68,5.94]
[1719010390539,5.9386,134.72,134.68,5.9399]
[1719010391303,5.9386,134.72,134.67,5.9403]
[1719010392302,21.5139,134.73,134.68,5.9396]
[1719010392603,15.576,134.73,134.69,5.9393]
[1719010394312,15.576,134.73,134.7,5.9391]
[1719010394806,15.576,134.73,134.69,5.9393]
[1719010396815,21.5138,134.73,134.69,5.9393]
[1719010397301,15.576,134.73,134.64,27.84]
[1719010397611,15.576,134.73,134.66,5.9407]
[1719010397612,5.9388,134.71,134.66,5.9407]
[1719010398303,5.9392,134.7,134.65,5.9411]
[1719010398686,5.9392,134.7,134.66,5.9408]
[1719010398882,5.9388,134.71,134.66,5.9408]
[1719010399282,5.9384,134.72,134.67,5.9403]
[1719010399807,5.9387,134.71,134.63,15.0254]
[1719010400188,5.9391,134.7,134.66,5.9406]
[1719010401207,5.9388,134.71,134.66,5.9406]
[1719010401915,5.9391,134.7,134.66,5.9406]
[1719010402911,5.9391,134.7,134.65,5.9411]
[1719010403513,5.9391,134.7,134.66,5.9408]
[1719010403691,5.9388,134.71,134.66,5.9408]
[1719010403894,5.9388,134.71,134.67,5.9404]
[1719010405563,5.9388,134.71,134.66,5.9406]
[1719010407215,5.9391,134.7,134.65,5.9411]
[1719010408933,5.9388,134.71,134.66,5.9408]
[1719010409220,6.1092,134.7,134.65,5.9411]
[1719010409424,15.2195,134.69,134.65,5.9411]
[1719010409790,9.28,134.69,134.65,5.9411]
[1719010411228,9.28,134.69,134.66,5.9408]
[1719010411409,9.45,134.7,134.66,5.9408]
[1719010417111,15.3891,134.7,134.66,5.9408]
[1719010419029,15.3891,134.7,134.65,5.9411]
[1719010421733,0.17,134.7,134.68,5.9398]
[1719010422037,9.45,134.7,134.66,5.9406]
[1719010422415,15.3891,134.7,134.66,5.9406]
[1719010423232,15.3891,134.7,134.65,15.2211]
[1719010423824,6.1091,134.7,134.65,15.2211]
[1719010424025,15.3891,134.7,134.66,5.9408]
[1719010425938,15.3891,134.7,134.65,9.28]
[1719010426146,15.3891,134.7,134.65,15.2211]
[1719010426454,6.1091,134.7,134.65,15.2211]
[1719010427723,5.9391,134.7,134.66,5.9408]
[1719010427924,5.9391,134.7,134.66,15.2208]
[1719010428844,5.9391,134.7,134.66,9.28]
[1719010429024,5.9397,134.69,134.64,15.2215]
[1719010430566,5.9397,134.69,134.65,5.9412]
[1719010430922,15.2193,134.7,134.65,5.9412]
[1719010431428,9.28,134.69,134.65,5.9412]
[1719010432837,15.2196,134.69,134.65,5.9412]
[1719010434253,9.28,134.69,134.65,5.9412]
[1719010435252,15.2193,134.7,134.65,5.9412]
[1719010440557,6.1088,134.71,134.66,5.9406]
[1719010440758,6.1088,134.71,134.66,15.2206]
[1719010442371,5.9391,134.7,134.66,15.2206]
[1719010443338,5.9391,134.7,134.66,9.28]
[1719010443538,5.9391,134.7,134.65,15.2211]
[1719010447466,36.42998151,134.73,134.63,28.693]
[1719010447467,15.576,134.73,134.63,28.693]
[1719010447649,15.576,134.73,134.69,15.2194]
[1719010447957,5.937,134.75,134.7,15.219]
[1719010448135,5.937,134.75,134.71,5.9386]
[1719010448462,5.937,134.75,134.71,15.2186]
[1719010449140,31.3018,134.76,134.71,15.2186]
[1719010449648,22.0218,134.76,134.71,15.2186]
[1719010450240,5.9366,134.76,134.71,5.9386]
[1719010450454,266.3356,134.78,134.73,5.9376]
[1719010450759,22.333,134.83,134.77,5.936]
[1719010450974,22.333,134.83,134.77,15.216]
[1719010451138,9.28,134.82,134.77,15.216]
[1719010451337,9.28,134.82,134.77,9.28]
[1719010451537,5.9346,134.81,134.77,9.28]
[1719010451963,22.333,134.83,134.77,9.28]
[1719010452147,31.2986,134.83,134.78,15.2155]
[1719010452351,15.5278,134.86,134.8,9.28]
[1719010452561,21.4601,134.86,134.81,5.9342]
[1719010452939,21.4601,134.86,134.81,15.2142]
[1719010453250,9.28,134.85,134.77,30.2566]
[1719010453442,9.28,134.85,134.79,9.28]
[1719010453642,15.2134,134.83,134.78,5.9355]
[1719010453858,9.28,134.83,134.78,5.9354]
[1719010454246,9.28,134.83,134.78,15.2154]
[1719010454450,5.9337,134.83,134.78,15.2155]
[1719010454850,15.2137,134.83,134.78,5.9355]
[1719010455359,5.933,134.84,134.79,5.9349]
[1719010455557,15.213,134.84,134.79,15.2149]
[1719010455761,12.18,134.86,134.81,5.9341]
[1719010455959,5.9325,134.85,134.8,15.2146]
[1719010456181,15.5278,134.86,134.8,15.2146]
[1719010456182,21.4602,134.86,134.8,15.2146]
[1719010456351,15.2126,134.85,134.8,15.2146]
[1719010458155,15.2126,134.85,134.8,5.9346]
[1719010459178,9.28,134.84,134.8,5.9346]
[1719010459774,12.52,134.86,134.81,5.9342]
[1719010459965,9.28,134.85,134.81,5.9342]
[1719010460354,6.2478,134.86,134.82,5.9334]
[1719010460589,9.28,134.85,134.81,5.9342]
[1719010461092,9.28,134.85,134.8,15.2146]
[1719010461093,15.2126,134.85,134.8,15.2146]
[1719010461558,9.28,134.84,134.8,5.9346]
[1719010465635,15.213,134.84,134.79,5.935]
[1719010465805,15.213,134.84,134.79,15.215]
[1719010466485,15.213,134.84,134.79,5.935]
[1719010466802,15.213,134.84,134.8,5.9346]
[1719010467176,15.2134,134.83,134.76,14.8401]
[1719010467379,9.28,134.82,134.79,5.9351]
[1719010467587,9.28,134.82,134.77,9.28]
[1719010467795,9.28,134.82,134.79,5.935]
[1719010470291,9.28,134.83,134.79,5.935]
[1719010470615,9.28,134.83,134.74,21.1961]
[1719010470782,9.28,134.8,134.76,5.9362]
[1719010471577,9.28,134.8,134.77,5.9357]
[1719010474307,9.28,134.8,134.76,5.9362]
[1719010475107,9.28,134.8,134.77,5.9358]
[1719010476811,16.6972,134.82,134.77,5.9358]
[1719010477026,9.28,134.81,134.77,5.9358]
[1719010477193,9.28,134.8,134.76,5.9363]
[1719010479404,15.2147,134.8,134.76,5.9363]
[1719010479912,5.9344,134.81,134.76,5.9363]
[1719010480114,9.28,134.8,134.75,9.28]
[1719010480293,15.2144,134.81,134.76,5.9362]
[1719010480494,5.9344,134.81,134.76,5.9362]
[1719010480815,15.2144,134.81,134.77,5.936]
[1719010481896,15.2144,134.81,134.76,5.9362]
[1719010484227,5.9344,134.81,134.75,9.28]
[1719010484401,16.3572,134.82,134.78,5.9355]
[1719010485114,22.2911,134.82,134.78,9.28]
[1719010486335,22.2911,134.82,134.78,15.2155]
[1719010487231,16.3572,134.82,134.78,15.2155]
[1719010488408,5.9329,134.84,134.79,5.9351]
[1719010488727,24.9615,134.86,134.82,5.9337]
[1719010488936,15.2118,134.87,134.82,15.2137]
[1719010489928,15.6815,134.89,134.84,9.28]
[1719010490106,15.6815,134.89,134.85,5.9324]
[1719010490431,15.6815,134.89,134.84,9.28]
[1719010490809,21.6122,134.89,134.84,15.2127]
[1719010491011,30.8922,134.89,134.84,15.2127]
[1719010492421,6.72214876,134.92,134.86,9.28]
[1719010492737,15.2101,134.91,134.85,9.28]
[1719010493036,9.28,134.91,134.85,9.28]
[1719010493335,9.28,134.9,134.85,9.28]
[1719010493520,15.2105,134.9,134.85,15.2122]
[1719010493723,9.28,134.9,134.85,15.2122]
[1719010494648,15.2103,134.9,134.85,15.2122]
[1719010496315,9.28,134.89,134.85,5.9322]
[1719010496740,9.28,134.89,134.86,5.932]
[1719010500235,9.28,134.9,134.86,5.932]
[1719010500606,0.17,134.91,134.89,5.9304]
[1719010500910,0.17,134.91,134.82,9.28]
[1719010500911,0.15494876,134.92,134.88,9.28]
[1719010501117,0.15494876,134.92,134.9,5.9301]
[1719010501548,0.15494876,134.92,134.91,5.9298]
[1719010503336,0.15494876,134.92,134.91,15.2098]
[1719010504230,0.15494876,134.92,134.91,5.9298]
[1719010504619,0.15494876,134.92,134.91,15.2098]
[1719010507542,0.15494876,134.92,134.9,5.9302]
[1719010509518,0.15494876,134.92,134.91,5.9298]
[1719010509718,0.15494876,134.92,134.87,14.8282]
[1719010510019,9.43494876,134.92,134.89,5.9306]
[1719010510439,0.15494876,134.92,134.89,5.9306]
[1719010514152,0.15494876,134.92,134.89,14.8268]
[1719010514326,0.15494876,134.92,134.91,15.2098]
[1719010514523,0.15494876,134.92,134.91,68.6802]
[1719010514716,0.15494876,134.92,134.91,75.6313]
[1719010514942,0.15494876,134.92,134.91,95.6313]
[1719010517454,0.8648173,134.96,134.95,5.9281]
[1719010517738,0.8648173,134.96,134.95,15.2081]
[1719010518433,0.8648173,134.96,134.95,37.8881]
[1719010520119,0.8648173,134.96,134.95,47.1681]
[1719010523632,0.8648173,134.96,134.95,37.8881]
[1719010525960,0.8648173,134.96,134.95,47.1681]
[1719010526133,0.8648173,134.96,134.95,75.0081]
[1719010527355,0.8648173,134.96,134.95,95.0081]
[1719010530635,15.2034,135.06,135.0,5.9255]
[1719010530856,15.2034,135.06,135.01,9.28]
[1719010531043,16.6071,135.07,135.01,9.28]
[1719010531224,31.8101,135.07,135.03,5.9246]
[1719010531425,22.5301,135.07,135.03,15.2046]
[1719010531858,16.6071,135.07,135.03,15.2046]
[1719010532040,16.6071,135.07,135.04,15.2041]
[1719010533560,16.6071,135.07,134.99,37.1556]
[1719010533859,31.81,135.07,135.03,5.9246]
[1719010534060,16.6071,135.07,135.03,5.9246]
[1719010534247,16.6071,135.07,135.04,5.9239]
[1719010535265,16.6071,135.07,135.03,15.2043]
[1719010535558,16.6071,135.07,135.03,9.28]
[1719010535761,0.8648173,135.09,135.05,9.28]
[1719010535962,0.8648173,135.09,135.06,5.9228]
[1719010536262,0.8648173,135.09,135.05,15.2035]
[1719010536465,0.8648173,135.09,135.06,5.9232]
[1719010538339,0.8648173,135.09,135.05,15.2035]
[1719010538945,0.8648173,135.09,135.06,5.9232]
[1719010539146,0.8648173,135.09,135.06,15.2032]
[1719010539365,0.8648173,135.09,135.07,5.9228]
[1719010539639,0.8648173,135.09,135.08,5.9224]
[1719010541556,0.8648173,135.09,135.08,15.2024]
[1719010542445,0.8648173,135.09,135.08,5.9224]
[1719010544587,0.8648173,135.09,135.03,37.1513]
[1719010544785,0.8648173,135.09,135.05,9.28]
[1719010544983,0.8648173,135.09,135.07,5.9226]
[1719010545887,0.8648173,135.09,135.06,15.2031]
[1719010546389,0.8648173,135.09,135.08,5.9224]
[1719010546580,0.8648173,135.09,135.08,15.2024]
[1719010548371,0.8648173,135.09,135.08,5.9224]
[1719010549686,0.8648173,135.09,135.08,15.2024]
[1719010550463,0.8648173,135.09,135.08,15.3724]
[1719010550659,0.8648173,135.09,135.08,6.0924]
[1719010550896,0.8648173,135.09,135.08,37.7124]
[1719010551090,0.8648173,135.09,135.08,37.8824]
[1719010552184,0.8648173,135.09,135.08,28.6024]
[1719010552376,0.8648173,135.09,135.08,15.2024]
[1719010553089,0.8648173,135.09,135.03,16.15]
[1719010553292,0.8648173,135.09,135.05,15.2037]
[1719010553793,0.8648173,135.09,135.06,5.9232]
[1719010556300,0.8648173,135.09,135.07,5.9227]
[1719010557693,0.8648173,135.09,135.08,5.9224]
[1719010558071,0.8648173,135.09,135.08,6.2624]
[1719010558772,0.8648173,135.09,135.08,79.783]
[1719010559093,0.8648173,135.09,135.08,55.103]
[1719010559475,0.8648173,135.09,135.08,35.103]
[1719010560387,0.8648173,135.09,135.08,79.783]
[1719010560900,0.8648173,135.09,135.08,35.103]
[1719010561274,0.8648173,135.09,135.08,5.9224]
[1719010562286,0.8648173,135.09,135.08,28.2624]
[1719010562803,0.8648173,135.09,135.08,28.6024]
[1719010563409,0.8648173,135.09,135.08,5.9224]
[1719010563585,0.8648173,135.09,135.04,30.9593]
[1719010563789,0.8648173,135.09,135.08,5.9224]
[1719010564807,0.8648173,135.09,135.08,6.2624]
[1719010565677,0.8648173,135.09,135.08,5.9224]
[1719010567682,0.8648173,135.09,135.08,28.2624]
[1719010567887,0.8648173,135.09,135.08,28.6024]
[1719010569998,0.8648173,135.09,135.08,5.9224]
[1719010573985,0.8648173,135.09,135.08,28.2624]
[1719010574293,0.8648173,135.09,135.08,28.6024]
[1719010574989,0.8648173,135.09,135.08,56.2824]
[1719010575820,1.73e-05,135.09,135.08,136.0742]
[1719010577910,1.73e-05,135.09,135.08,91.3942]
[1719010578099,1.73e-05,135.09,135.08,76.2824]
[1719010578507,1.73e-05,135.09,135.08,76.1124]
[1719010578717,1.73e-05,135.09,135.08,33.7724]
[1719010579225,1.73e-05,135.09,135.08,5.9224]
[1719010580006,1.73e-05,135.09,135.08,28.2624]
[1719010581000,1.73e-05,135.09,135.08,72.9424]
[1719010581226,1.73e-05,135.09,135.08,106.9791]
[1719010581529,1.73e-05,135.09,135.08,82.2991]
[1719010583798,1.73e-05,135.09,135.08,126.9791]
[1719010584745,155.62,135.18,135.17,5.9184]
[1719010585797,155.62,135.18,135.08,86.1485]
[1719010585798,6.6031,135.16,135.03,44.68]
[1719010586003,22.4944,135.13,135.02,29.6241]
[1719010586204,15.574,135.13,135.02,29.6241]
[1719010586701,15.574,135.13,135.09,5.9218]
[1719010587130,15.574,135.13,135.11,5.921]
[1719010587316,15.574,135.13,135.08,22.34]
[1719010587512,15.574,135.13,135.08,5.9222]
[1719010587912,21.4945,135.13,135.08,5.9222]
[1719010588804,21.4943,135.13,135.07,5.9226]
[1719010589013,21.4943,135.13,135.08,5.9223]
[1719010589715,21.4943,135.13,135.07,5.9226]
[1719010589917,5.9207,135.12,135.06,5.9231]
[1719010590108,5.9207,135.12,135.07,5.9227]
[1719010591017,5.921,135.12,135.06,5.9232]
[1719010591420,5.9211,135.11,135.06,5.9232]
[1719010591619,5.9208,135.12,135.07,5.9226]
[1719010591827,21.4943,135.13,135.07,5.9226]
[1719010592144,21.4943,135.13,135.08,5.9223]
[1719010592438,21.4943,135.13,135.04,37.1494]
[1719010592439,5.9208,135.12,135.07,5.9226]
[1719010594029,5.9211,135.11,135.06,5.9231]
[1719010594218,5.9224,135.08,135.03,5.9244]
[1719010594413,6.278,135.1,135.03,5.9244]
[1719010594640,5.9221,135.09,135.04,5.9238]
[1719010596013,5.9221,135.09,135.01,14.8126]
[1719010596014,12.1997,135.1,135.05,5.9237]
[1719010596438,5.9223,135.09,135.01,14.8126]
[1719010596635,5.9223,135.09,135.04,5.9241]
[1719010596839,16.3492,135.08,135.04,5.9241]
[1719010597731,16.3492,135.08,135.05,5.9236]
[1719010597931,16.3492,135.08,135.03,14.8115]
[1719010598239,16.3492,135.08,135.0,37.4938]
[1719010598432,16.3492,135.08,135.03,5.9243]
[1719010598433,22.2716,135.08,135.03,5.9243]
[1719010599331,16.3492,135.08,135.04,5.9241]
[1719010599748,22.2716,135.08,135.03,5.9244]
[1719010601550,16.3492,135.08,135.04,5.924]
[1719010602328,22.2716,135.08,135.04,5.924]
[1719010603039,22.2716,135.08,135.03,5.9244]
[1719010604550,22.2716,135.08,135.04,5.9241]
[1719010604739,16.3492,135.08,135.04,5.9241]
[1719010607057,22.2716,135.08,135.03,5.9243]
[1719010607438,9.23,135.07,135.03,5.9243]
[1719010607951,15.1529,135.07,135.02,5.9248]
[1719010608131,9.23,135.07,135.03,5.9246]
[1719010609546,9.23,135.06,135.03,5.9246]
[1719010609747,9.23,135.07,135.03,5.9246]
[1719010612341,9.23,135.06,135.03,5.9246]
[1719010615796,16.3492,135.08,135.02,9.23]
[1719010615949,9.23,135.07,135.05,5.9237]
[1719010616262,16.3492,135.08,135.07,5.9228]
[1719010616461,16.3492,135.08,135.06,5.923]
[1719010618841,16.3492,135.08,135.05,5.9235]
[1719010619338,25.5792,135.08,135.05,5.9235]
[1719010620363,25.5792,135.08,135.04,5.9239]
[1719010620574,9.23,135.07,135.04,5.9239]
[1719010621458,9.23,135.07,135.03,5.9244]
[1719010622165,9.23,135.06,135.03,5.9244]
[1719010622340,9.23,135.06,135.01,9.23]
[1719010622546,16.3492,135.08,135.01,24.0426]
[1719010622740,16.3492,135.08,135.04,5.9238]
[1719010623454,9.23,135.07,135.04,5.9238]
[1719010624546,9.23,135.06,135.04,5.9238]
[1719010624763,16.3492,135.08,135.04,5.9238]
[1719010624764,9.23,135.07,135.04,5.9238]
[1719010625271,9.23,135.06,135.04,5.9238]
[1719010625854,9.23,135.06,135.03,5.9245]
[1719010626043,9.23,135.04,135.02,5.9248]
[1719010627567,9.23,135.05,134.99,9.23]
[1719010627865,9.23,135.05,135.01,5.9253]
[1719010628955,9.23,135.05,135.02,5.925]
[1719010629344,9.23,135.05,135.01,5.9253]
[1719010629548,9.23,135.04,135.01,5.9253]
[1719010630563,5.9229,135.07,135.02,5.9249]
[1719010630758,9.23,135.05,135.02,5.9249]
[1719010630944,9.23,135.04,135.01,5.9252]
[1719010631665,5.923,135.07,135.02,5.925]
[1719010631870,9.23,135.05,135.02,5.925]
[1719010632385,9.23,135.05,135.01,5.9252]
[1719010633054,9.23,135.04,135.01,5.9252]
[1719010635271,9.23,135.05,135.01,5.9252]
[1719010635571,22.4418,135.08,135.04,5.9241]
[1719010635743,16.3492,135.08,135.04,5.9241]
[1719010636060,9.23,135.07,135.04,5.9241]
[1719010637273,22.2716,135.08,135.04,5.9241]
[1719010637570,9.23,135.07,135.04,5.9241]
[1719010638072,25.5792,135.08,135.04,5.9241]
[1719010638373,24.488,135.11,135.07,5.9225]
[1719010639373,9.23,135.1,135.06,5.9231]
[1719010640082,15.1516,135.1,135.05,5.9235]
[1719010640270,9.23,135.09,135.05,5.9235]
[1719010640453,9.23,135.08,135.04,5.924]
[1719010640650,5.9224,135.08,135.03,5.9245]
[1719010640851,9.23,135.07,135.03,5.9245]
[1719010641049,5.9224,135.08,135.03,5.9245]
[1719010643250,5.9224,135.08,135.01,24.0436]
[1719010643251,6.2262,135.08,135.01,5.9253]
[1719010643470,0.34,135.07,135.01,5.9253]
[1719010643770,9.23,135.03,135.01,5.9253]
[1719010644875,5.9257,135.01,134.96,5.9273]
[1719010645184,25.3185,135.02,134.94,9.23]
[1719010645185,9.23,134.99,134.94,9.23]
[1719010645479,9.23,134.99,134.95,5.9278]
[1719010645851,9.23,134.99,134.96,5.9275]
[1719010646058,16.0885,135.02,134.98,5.9266]
[1719010646269,9.23,135.01,134.98,5.9266]
[1719010646955,16.0885,135.02,134.98,5.9266]
[1719010647484,9.23,135.01,134.96,9.23]
[1719010647654,9.23,135.01,134.95,14.8192]
[1719010647857,9.23,135.01,134.98,5.9265]
[1719010648084,9.23,135.01,134.97,5.927]
[1719010648284,16.0885,135.02,134.92,43.5526]
[1719010648468,9.23,135.01,134.97,5.9269]
[1719010648790,9.23,135.01,134.95,9.23]
[1719010648791,9.23,135.03,134.98,9.23]
[1719010648961,9.23,135.0,134.96,5.9275]
[1719010649786,5.9242,135.04,134.99,5.9263]
[1719010649999,9.23,135.0,134.98,5.9266]
[1719010650386,9.23,135.0,134.97,5.927]
[1719010650698,9.23,135.0,134.92,14.8235]
[1719010650699,9.23,134.98,134.92,14.8235]
[1719010650867,9.23,134.98,134.92,9.23]
[1719010651188,15.157,134.98,134.93,5.9287]
[1719010651368,9.23,134.98,134.94,5.9285]
[1719010652468,15.1568,134.98,134.93,15.1588]
[1719010652673,22.015,134.99,134.94,5.9284]
[1719010652995,9.23,134.98,134.94,5.9284]
[1719010653376,15.1576,134.97,134.92,5.929]
[1719010653579,5.9276,134.97,134.92,5.929]
[1719010653770,9.23,134.96,134.92,5.929]
[1719010654100,9.23,134.96,134.93,5.9289]
[1719010654290,9.23,134.98,134.94,5.9285]
[1719010654472,15.1568,134.98,134.94,5.9285]
[1719010654876,15.1568,134.98,134.93,5.9288]
[1719010657205,16.0885,134.99,134.92,22.27]
[1719010657499,9.23,135.02,134.99,5.9263]
[1719010657681,16.0885,135.03,134.98,5.9266]
[1719010657682,22.0133,135.03,134.98,5.9266]
[1719010657887,31.2433,135.03,134.98,5.9266]
[1719010658200,5.9255,135.01,134.96,15.1575]
[1719010658499,15.1552,135.02,134.97,5.9269]
[1719010658673,5.9252,135.02,134.97,5.9269]
[1719010658874,15.1552,135.02,134.97,5.9269]
[1719010659599,5.9252,135.02,134.97,5.9269]
[1719010661873,16.0885,135.03,134.96,22.27]
[1719010662077,14.8068,135.08,134.96,22.27]
[1719010662078,15.9213,135.06,134.96,22.27]
[1719010662389,21.8448,135.06,135.01,5.9254]
[1719010662592,5.9239,135.05,135.0,5.9256]
[1719010663880,5.9239,135.05,135.01,5.9254]
[1719010664203,15.9213,135.06,135.0,5.9257]
[1719010664796,5.9239,135.05,135.0,5.9257]
[1719010665303,21.8447,135.06,135.01,5.9253]
[1719010665506,21.8447,135.06,135.02,5.925]
[1719010665698,15.9213,135.06,135.02,5.9249]
[1719010667700,15.9213,135.06,135.03,5.9245]
[1719010669403,21.8446,135.06,135.02,5.9249]
[1719010669581,21.8446,135.06,135.01,5.9252]
[1719010670201,15.9213,135.06,135.02,5.9248]
[1719010671601,15.9213,135.06,135.03,5.9243]
[1719010671902,6.4565,135.08,135.04,5.9238]
[1719010672111,6.4565,135.08,135.05,5.9235]